bitfinex/quotes_SOLUSD_20241010
["timestamp","ask_amount","ask_price","bid_price","bid_amount"]
[1728552538655,0.96892,137.74,137.68,23.776884]
[1728552538656,7.2611,137.72,137.68,31.039684]
[1728552538849,11.46870173,137.71,137.68,23.776884]
[1728552539033,4.20710173,137.7,137.68,23.776884]
[1728552539351,4.20710173,137.69,137.68,23.776884]
[1728552542969,4.20710173,137.69,137.67,22.0589]
[1728552543251,4.20710173,137.68,137.67,45.835784]
[1728552543636,4.2101267,137.69,137.67,22.0589]
[1728552543832,7.2621,137.7,137.67,22.0589]
[1728552544160,4.21012858,137.68,137.67,53.099484]
[1728552544360,0.96892,137.72,137.67,22.0589]
[1728552544658,7.2621,137.7,137.67,22.0589]
[1728552545357,4.21104948,137.69,137.67,22.0589]
[1728552545956,4.21104948,137.69,137.67,15.639]
[1728552546139,4.21104948,137.68,137.67,39.415884]
[1728552546762,4.21104948,137.69,137.67,39.415884]
[1728552546937,4.21104948,137.68,137.67,39.415884]
[1728552547361,4.21104948,137.69,137.67,40.86833892]
[1728552547565,4.21104948,137.69,137.67,39.415884]
[1728552547742,4.21104948,137.68,137.67,39.415884]
[1728552547951,7.2621,137.7,137.67,39.415884]
[1728552548344,7.2617,137.71,137.67,46.679484]
[1728552548551,7.2617,137.71,137.68,23.776884]
[1728552548857,4.21273276,137.7,137.68,23.776884]
[1728552549675,4.21273276,137.7,137.69,32.49177043]
[1728552549962,4.21273276,137.7,137.69,31.039484]
[1728552550260,4.21273276,137.7,137.68,18.1578]
[1728552550261,7.2602,137.74,137.7,31.038584]
[1728552550471,0.96892,137.76,137.7,31.038584]
[1728552550472,7.2596,137.75,137.71,8.71349942]
[1728552550642,7.2596,137.75,137.71,7.2615]
[1728552550843,4.21285375,137.73,137.71,7.2615]
[1728552551036,4.21285375,137.74,137.71,7.2615]
[1728552551237,4.21285375,137.74,137.72,23.776884]
[1728552551736,4.21285375,137.74,137.73,23.776884]
[1728552551964,4.21285375,137.74,137.73,31.037384]
[1728552552767,7.2585,137.77,137.74,23.776884]
[1728552552946,4.21045009,137.76,137.73,22.6878]
[1728552553260,4.21045009,137.75,137.74,23.776884]
[1728552553472,4.21045009,137.76,137.74,23.776884]
[1728552554037,4.21045009,137.76,137.73,15.4273]
[1728552554356,11.46975009,137.76,137.73,15.4273]
[1728552554566,7.2607,137.73,137.71,23.776884]
[1728552555143,7.2601,137.74,137.71,23.776884]
[1728552555667,7.261,137.73,137.7,22.1037]
[1728552556741,4.204732,137.73,137.7,29.3658]
[1728552556945,4.204732,137.73,137.71,23.776884]
[1728552557144,4.204732,137.73,137.71,31.038384]
[1728552557358,7.2601,137.74,137.71,23.776884]
[1728552559143,19.11542,137.77,137.71,23.776884]
[1728552559340,7.2597,137.75,137.71,31.038284]
[1728552559655,4.20305059,137.74,137.71,31.038284]
[1728552559849,4.20305059,137.74,137.71,23.776884]
[1728552560048,7.2588,137.77,137.73,23.776884]
[1728552560277,0.96892,137.79,137.73,23.776884]
[1728552560451,4.20360564,137.76,137.74,7.2597]
[1728552560775,4.20360564,137.76,137.73,49.188084]
[1728552561068,7.2581,137.78,137.74,8.71165353]
[1728552561868,7.2581,137.78,137.74,7.26]
[1728552562461,7.2606,137.73,137.7,40.2583]
[1728552562770,19.11532,137.77,137.7,40.2583]
[1728552562949,7.2598,137.75,137.71,7.2616]
[1728552563370,7.2606,137.73,137.7,22.1037]
[1728552563576,0.96892,137.76,137.7,22.1037]
[1728552563577,7.2602,137.74,137.7,29.3657]
[1728552563756,7.2602,137.74,137.71,23.776884]
[1728552564078,0.96892,137.76,137.71,23.776884]
[1728552564366,7.2597,137.75,137.71,31.038484]
[1728552564575,0.96892,137.76,137.71,23.776884]
[1728552565468,7.2606,137.73,137.71,23.776884]
[1728552566159,7.2601,137.74,137.71,23.776884]
[1728552567257,7.2596,137.75,137.71,31.038184]
[1728552568772,7.26,137.74,137.71,23.776884]
[1728552570565,7.26,137.74,137.72,1.45201994]
[1728552571684,7.26,137.74,137.71,23.776884]
[1728552571873,7.2609,137.73,137.7,22.1037]
[1728552572079,7.2609,137.73,137.69,25.4188]
[1728552572080,7.2614,137.72,137.68,7.263]
[1728552572272,7.2616,137.71,137.67,29.1032]
[1728552572950,7.2613,137.72,137.68,7.2631]
[1728552573763,48.3465,137.78,137.68,7.2631]
[1728552573764,0.96892,137.77,137.72,23.776884]
[1728552574084,7.2585,137.77,137.72,31.037884]
[1728552574257,0.96892,137.78,137.72,23.776884]
[1728552574258,7.2591,137.76,137.72,23.776884]
[1728552574577,4.20390704,137.75,137.72,23.776884]
[1728552574979,7.2591,137.76,137.72,23.776884]
[1728552575678,7.2581,137.78,137.74,7.2599]
[1728552575885,4.20556472,137.77,137.73,31.037384]
[1728552576180,4.20556472,137.76,137.73,31.037384]
[1728552576365,7.2581,137.78,137.73,31.037384]
[1728552576759,4.20606518,137.75,137.73,31.037384]
[1728552576973,7.2581,137.78,137.73,31.037384]
[1728552577161,4.206081,137.77,137.73,31.037384]
[1728552577359,7.2581,137.78,137.73,31.037384]
[1728552577559,0.96892,137.8,137.74,7.2597]
[1728552577769,27.2581,137.78,137.74,7.2597]
[1728552577976,4.20630073,137.77,137.74,7.2597]
[1728552578763,4.20630073,137.77,137.75,25.22856702]
[1728552578972,4.20630073,137.76,137.75,25.22856702]
[1728552579181,4.20630073,137.76,137.75,32.48806702]
[1728552579778,8.22542,137.81,137.77,23.776884]
[1728552579983,4.21043608,137.8,137.77,23.776884]
[1728552580196,4.21043608,137.8,137.78,7.2579]
[1728552580482,7.2561,137.82,137.79,23.776884]
[1728552580660,4.21182927,137.81,137.79,23.776884]
[1728552580863,4.21182927,137.8,137.79,31.034284]
[1728552581179,4.21182927,137.8,137.79,32.48543786]
[1728552581542,8.22262,137.86,137.81,23.776884]
[1728552581671,4.21148333,137.85,137.81,23.776884]
[1728552581996,4.21148333,137.84,137.81,23.776884]
[1728552582369,4.21148333,137.84,137.81,31.032884]
[1728552582661,4.21148333,137.84,137.81,23.776884]
[1728552582866,4.21148333,137.84,137.81,31.033184]
[1728552583383,11.46628333,137.84,137.81,23.776884]
[1728552583589,4.21148333,137.83,137.81,23.776884]
[1728552583887,7.2548,137.84,137.81,23.776884]
[1728552584187,0.96892,137.87,137.81,23.776884]
[1728552584188,7.2543,137.85,137.81,23.776884]
[1728552585088,4.20743581,137.83,137.81,23.776884]
[1728552585888,0.96892,137.87,137.79,15.8248]
[1728552586191,18.1349,137.86,137.79,15.8248]
[1728552586412,7.2554,137.83,137.79,23.0821]
[1728552586690,7.2548,137.84,137.8,7.2568]
[1728552586897,27.2533,137.87,137.81,1.45100473]
[1728552587064,20.0,137.87,137.83,7.2551]
[1728552587265,20.0,137.87,137.84,25.22753646]
[1728552587869,4.20281163,137.86,137.84,25.22753646]
[1728552588068,20.0,137.87,137.84,25.22753646]
[1728552588277,7.2536,137.87,137.85,1.45064581]
[1728552589084,0.96892,137.91,137.86,23.776884]
[1728552589281,7.2527,137.88,137.86,23.776884]
[1728552589773,7.2527,137.88,137.85,23.776884]
[1728552593313,7.2507,137.92,137.88,7.2525]
[1728552593598,37.54752757,137.95,137.9,23.776884]
[1728552593599,7.36902757,137.95,137.9,23.776884]
[1728552593785,19.09062,137.96,137.9,23.776884]
[1728552593786,4.19364213,137.91,137.9,23.776884]
[1728552593997,7.2502,137.93,137.9,23.776884]
[1728552594406,7.2502,137.93,137.89,31.028884]
[1728552595389,0.96892,137.95,137.89,23.776884]
[1728552595588,7.251,137.92,137.89,23.776884]
[1728552596698,7.2502,137.93,137.89,23.776884]
[1728552596879,7.2502,137.93,137.9,1.45001672]
[1728552597200,7.2502,137.93,137.89,31.028884]
[1728552597784,0.96892,137.96,137.91,23.776884]
[1728552597986,20.96892,137.97,137.91,23.776884]
[1728552598389,7.2499,137.94,137.91,23.776884]
[1728552598581,7.2501,137.93,137.91,23.776884]
[1728552598781,0.96892,137.96,137.9,6.4453]
[1728552598997,7.2508,137.92,137.9,6.4453]
[1728552599381,7.2501,137.93,137.91,23.776884]
[1728552600194,7.2501,137.93,137.9,6.4453]
[1728552600399,0.96892,137.96,137.9,6.4453]
[1728552600604,20.0,137.94,137.9,30.222184]
[1728552600808,7.2507,137.92,137.9,30.222184]
[1728552601908,7.2516,137.9,137.89,23.776884]
[1728552603226,7.2505,137.92,137.89,23.776884]
[1728552603429,28.21852,137.94,137.9,7.2514]
[1728552603593,0.96892,137.97,137.91,1.4499393]
[1728552603793,7.2499,137.94,137.92,23.776884]
[1728552603992,7.2499,137.94,137.9,23.776884]
[1728552604193,7.2499,137.94,137.9,31.028384]
[1728552605114,7.2511,137.91,137.86,29.0842]
[1728552605420,7.2506,137.92,137.88,7.2525]
[1728552606127,7.2501,137.93,137.88,7.2525]
[1728552606293,7.2501,137.93,137.89,7.252]
[1728552606710,7.2501,137.93,137.9,23.776884]
[1728552606989,20.0,137.93,137.9,31.028484]
[1728552608813,20.0,137.93,137.9,23.776884]
[1728552609006,20.0,137.95,137.9,23.776884]
[1728552609321,7.25,137.93,137.9,23.776884]
[1728552612301,7.2515,137.91,137.87,18.1325]
[1728552612510,7.2515,137.91,137.88,23.776884]
[1728552612897,7.2517,137.9,137.87,23.776884]
[1728552613102,7.2512,137.91,137.87,31.029984]
[1728552615798,7.2521,137.89,137.86,39.965]
[1728552616000,7.2531,137.88,137.86,21.8309]
[1728552616207,18.1267,137.92,137.87,1.4504349]
[1728552616208,7.2522,137.89,137.87,1.4504349]
[1728552616407,7.2522,137.89,137.86,21.8309]
[1728552616607,7.2522,137.89,137.87,1.4504091]
[1728552617195,7.2522,137.89,137.87,23.776884]
[1728552620834,7.2518,137.9,137.88,1.45039173]
[1728552621207,7.2512,137.91,137.88,1.45039173]
[1728552621714,20.96892,137.94,137.87,31.029984]
[1728552621916,7.2516,137.9,137.87,23.776884]
[1728552624411,4.19940764,137.89,137.87,23.776884]
[1728552624611,7.2516,137.9,137.88,1.45032176]
[1728552624820,4.19940911,137.89,137.87,23.776884]
[1728552625008,7.2516,137.9,137.87,23.776884]
[1728552625529,7.2532,137.87,137.83,15.2038]
[1728552625828,7.2532,137.87,137.83,22.459]
[1728552626332,4.2063985,137.86,137.83,22.459]
[1728552626506,7.2532,137.87,137.83,22.459]
[1728552626825,4.20629476,137.86,137.84,23.776884]
[1728552627135,7.2532,137.87,137.84,23.776884]
[1728552627444,4.20942779,137.86,137.84,23.776884]
[1728552627622,4.20942779,137.85,137.84,23.776884]
[1728552629115,4.20942779,137.85,137.79,15.2038]
[1728552629315,5.17834779,137.84,137.76,18.1463]
[1728552629542,7.2569,137.8,137.76,18.1463]
[1728552629719,7.2569,137.8,137.75,28.7524]
[1728552629720,0.96892,137.82,137.75,21.4933]
[1728552630029,4.21096181,137.81,137.79,7.2571]
[1728552630251,4.2113929,137.8,137.77,18.1454]
[1728552630531,7.2549,137.84,137.79,7.2573]
[1728552630740,4.21253329,137.83,137.79,7.2573]
[1728552630915,4.21253329,137.82,137.79,7.2573]
[1728552631111,4.21253329,137.82,137.8,7.2568]
[1728552631318,20.0,137.84,137.81,23.776884]
[1728552631543,4.21343483,137.83,137.81,23.776884]
[1728552631739,20.0,137.84,137.81,23.776884]
[1728552631944,4.21343653,137.83,137.81,23.776884]
[1728552632236,7.2543,137.85,137.82,23.776884]
[1728552632438,4.21404022,137.84,137.82,23.776884]
[1728552632620,4.21404022,137.83,137.81,23.776884]
[1728552632826,7.2543,137.85,137.81,23.776884]
[1728552633026,4.21594887,137.84,137.82,1.45088917]
[1728552633335,20.0,137.85,137.83,23.776884]
[1728552633530,4.21735184,137.84,137.83,23.776884]
[1728552634057,4.21735184,137.84,137.82,23.776884]
[1728552634244,7.2538,137.86,137.82,23.776884]
[1728552634539,4.21794059,137.85,137.82,23.776884]
[1728552634928,4.21794059,137.84,137.82,23.776884]
[1728552635237,0.96892,137.87,137.82,23.776884]
[1728552635442,7.2546,137.85,137.82,23.776884]
[1728552635626,4.21768728,137.84,137.82,23.776884]
[1728552635832,7.2546,137.85,137.82,23.776884]
[1728552636153,4.21748155,137.84,137.82,23.776884]
[1728552636340,27.2538,137.86,137.82,23.776884]
[1728552636526,4.21695472,137.85,137.82,23.776884]
[1728552636726,7.2543,137.85,137.82,23.776884]
[1728552638040,20.0,137.86,137.82,23.776884]
[1728552638041,7.2537,137.86,137.82,23.776884]
[1728552638543,20.96892,137.87,137.82,23.776884]
[1728552638544,7.2542,137.85,137.82,23.776884]
[1728552639949,4.21521554,137.84,137.82,23.776884]
[1728552640127,7.2542,137.85,137.82,23.776884]
[1728552641148,20.96892,137.87,137.82,23.776884]
[1728552641339,7.2553,137.83,137.82,23.776884]
[1728552642441,7.2549,137.84,137.82,23.776884]
[1728552642634,20.96892,137.87,137.83,1.45096076]
[1728552642833,11.46766825,137.86,137.83,1.45096076]
[1728552643049,4.21396825,137.85,137.83,1.45096076]
[1728552644229,4.21396825,137.85,137.84,23.776884]
[1728552644935,4.21396825,137.85,137.84,31.031584]
[1728552645136,7.2523,137.89,137.86,23.776884]
[1728552645337,4.21543585,137.88,137.86,23.776884]
[1728552645536,7.2523,137.89,137.87,23.776884]
[1728552645753,4.21583873,137.88,137.87,23.776884]
[1728552646244,4.21583873,137.88,137.87,31.030084]
[1728552646450,7.2512,137.91,137.88,23.776884]
[1728552646625,7.2512,137.91,137.89,1.45024682]
[1728552646828,4.21697572,137.9,137.89,25.22713082]
[1728552647033,4.21697572,137.9,137.89,23.776884]
[1728552647246,4.21697572,137.9,137.88,23.776884]
[1728552647553,7.2512,137.91,137.88,25.22713949]
[1728552647744,4.21758796,137.9,137.88,25.22713949]
[1728552647929,7.2512,137.91,137.88,25.22713949]
[1728552648130,4.21758796,137.9,137.88,25.22713949]
[1728552648446,0.96892,137.95,137.89,7.2521]
[1728552648447,7.2501,137.93,137.89,7.2521]
[1728552648645,7.2501,137.93,137.88,43.35803949]
[1728552648646,24.21799975,137.92,137.88,49.160284]
[1728552648859,4.21799975,137.91,137.88,49.160284]
[1728552650056,4.21799975,137.91,137.89,7.37749]
[1728552650227,21.84758924,137.97,137.92,31.027384]
[1728552650432,21.84758924,137.97,137.93,26.82373547]
[1728552650433,4.21945309,137.96,137.93,26.82373547]
[1728552650648,4.21945309,137.96,137.93,1.44963547]
[1728552650649,11.46795309,137.96,137.93,1.44963547]
[1728552650827,11.46795309,137.96,137.93,23.776884]
[1728552651039,4.21945309,137.95,137.92,1.44967702]
[1728552651354,4.21945309,137.94,137.92,23.776884]
[1728552652052,7.2494,137.95,137.92,23.776884]
[1728552652427,7.2494,137.95,137.91,29.3968]
[1728552652428,7.2495,137.94,137.91,22.1458]
[1728552653137,7.2491,137.95,137.91,22.1458]
[1728552653664,0.96892,138.0,137.96,7.2484]
[1728552653841,4.21739515,137.99,137.95,23.776884]
[1728552654159,11.46519515,137.98,137.94,23.776884]
[1728552654330,7.2478,137.98,137.94,23.776884]
[1728552656258,8.21472,138.01,137.95,1.4494946]
[1728552656442,4.21264125,138.0,137.97,25.3673]
[1728552656649,7.2458,138.01,137.98,1.4493052]
[1728552657144,1.7871391,138.03,137.98,1.4493052]
[1728552657352,11.45529962,138.02,137.98,1.4493052]
[1728552657539,7.2453,138.02,137.98,1.4493052]
[1728552657743,8.0633191,138.03,137.99,23.776884]
[1728552657942,4.21008956,138.02,137.99,23.776884]
[1728552658166,8.0633191,138.03,137.99,23.776884]
[1728552658342,4.20720496,138.02,137.99,23.776884]
[1728552658547,20.0,138.02,137.99,23.776884]
[1728552658751,27.2454,138.02,137.98,23.776884]
[1728552659262,27.2454,138.02,137.99,1.44911549]
[1728552660841,27.2454,138.02,137.98,31.024184]
[1728552661462,27.2454,138.02,137.98,32.47329926]
[1728552662052,8.0630191,138.03,137.98,32.47329926]
[1728552662252,20.0,138.02,137.98,32.47329926]
[1728552662455,8.0630191,138.03,138.0,23.776884]
[1728552663051,8.0630191,138.03,137.98,7.2473]
[1728552663254,8.0630191,138.03,137.99,23.776884]
[1728552664247,8.0630191,138.03,138.0,1.44900028]
[1728552665469,8.0630191,138.03,137.99,7.2468]
[1728552665668,0.8182191,138.03,137.98,23.776884]
[1728552665971,7.2453,138.02,137.98,23.776884]
[1728552667058,0.8182191,138.03,137.99,0.25098]
[1728552667250,0.8182191,138.03,138.01,31.022484]
[1728552667449,0.8182191,138.03,138.02,1.44876861]
[1728552668266,0.8182191,138.03,138.01,31.022484]
[1728552668267,0.8182191,138.03,138.01,18.1139]
[1728552668471,0.8182191,138.03,138.02,1.44882545]
[1728552668654,8.0630191,138.03,138.02,1.44882545]
[1728552668852,8.0630191,138.03,138.0,23.776884]
[1728552669564,0.8182191,138.03,138.0,23.776884]
[1728552670343,0.8182191,138.03,138.0,25.3619]
[1728552670649,0.8182191,138.03,137.97,22.1712]
[1728552670650,21.7871391,138.03,137.97,22.1712]
[1728552670855,7.2465,138.0,137.97,22.1712]
[1728552671058,7.2458,138.02,137.97,29.419]
[1728552672075,7.2454,138.02,137.98,7.2474]
[1728552672773,7.2454,138.02,137.99,1.4491166]
[1728552675978,8.0631191,138.03,137.99,8.6959166]
[1728552676684,0.8182191,138.03,138.0,1.44898377]
[1728552676973,0.8182191,138.03,138.01,31.147774]
[1728552677176,0.8182191,138.03,138.02,8.6939954]
[1728552677374,0.8182191,138.03,138.02,32.4708794]
[1728552677786,0.8182191,138.03,138.02,32.7218594]
[1728552679101,0.8182191,138.03,138.02,88.68905076]
[1728552680375,0.8182191,138.03,138.02,73.099864]
[1728552680796,0.8182191,138.03,138.02,74.54819884]
[1728552681083,0.8182191,138.03,138.02,73.099864]
[1728552681283,0.8182191,138.03,138.02,74.54810686]
[1728552681971,7.2415,138.1,138.06,7.2431]
[1728552682170,7.2415,138.1,138.07,1.44822706]
[1728552682875,7.2415,138.1,138.07,23.776884]
[1728552683062,7.2428,138.07,138.03,27.49538]
[1728552683266,7.2428,138.07,138.03,24.027864]
[1728552683467,7.2423,138.08,138.03,31.272264]
[1728552684062,7.2423,138.08,138.04,7.2441]
[1728552684267,7.2423,138.08,138.05,23.776884]
[1728552684482,7.2423,138.08,138.06,1.44842212]
[1728552684787,27.2415,138.1,138.06,1.44842212]
[1728552684992,27.2415,138.1,138.05,31.020184]
[1728552685176,27.2415,138.1,138.06,1.44834085]
[1728552685377,7.2415,138.1,138.07,23.776884]
[1728552685576,7.2407,138.11,138.08,1.44818477]
[1728552685891,0.96892,138.13,138.08,1.44818477]
[1728552686087,7.2406,138.11,138.08,1.44818477]
[1728552687579,19.06542,138.15,138.07,23.776884]
[1728552687782,7.2401,138.12,138.08,7.242]
[1728552688186,7.2401,138.12,138.09,1.44802331]
[1728552688368,7.2397,138.13,138.09,8.68962331]
[1728552689878,7.2397,138.13,138.09,7.2416]
[1728552690498,7.2397,138.13,138.1,1.44797562]
[1728552690791,20.0,138.14,138.11,7.2405]
[1728552690996,27.2394,138.14,138.12,1.44787736]
[1728552691182,20.0,138.14,138.11,1.44784986]
[1728552691385,7.2388,138.15,138.11,8.68824986]
[1728552691600,4.19091451,138.14,138.11,8.68824986]
[1728552691886,21.7871391,138.17,138.11,1.44784986]
[1728552692093,7.239,138.14,138.11,1.44784986]
[1728552692299,20.96892,138.13,138.06,18.1067]
[1728552692475,20.96892,138.13,138.03,58.2961]
[1728552692882,20.96892,138.13,138.05,7.2434]
[1728552693392,7.2414,138.1,138.06,7.243]
[1728552693695,7.2409,138.11,138.07,7.2426]
[1728552694277,7.2404,138.12,138.08,7.242]
[1728552694597,7.2407,138.11,138.08,23.776884]
[1728552694774,4.19509522,138.1,138.08,23.776884]
[1728552694977,7.2407,138.11,138.08,23.776884]
[1728552695180,4.19748197,138.1,138.08,23.776884]
[1728552695489,7.2407,138.11,138.08,23.776884]
[1728552696298,4.19745635,138.1,138.08,23.776884]
[1728552696495,7.2407,138.11,138.08,23.776884]
[1728552696792,4.19977938,138.1,138.08,23.776884]
[1728552696974,7.2407,138.11,138.08,23.776884]
[1728552697175,4.19977871,138.1,138.08,23.776884]
[1728552697375,7.2407,138.11,138.08,23.776884]
[1728552697600,4.20100099,138.1,138.08,23.776884]
[1728552697873,7.2421,138.09,138.05,7.2436]
[1728552698093,7.2427,138.07,138.04,18.1097]
[1728552698400,0.96892,138.11,138.04,25.3539]
[1728552698401,7.2423,138.08,138.04,25.3539]
[1728552698584,11.44523123,138.08,138.04,25.3539]
[1728552698905,7.2423,138.08,138.04,25.3539]
[1728552699204,4.20621913,138.07,138.05,23.776884]
[1728552699499,7.2423,138.08,138.05,23.776884]
[1728552700375,7.2419,138.09,138.06,1.44837192]
[1728552700580,4.20814902,138.08,138.06,1.44837192]
[1728552700780,7.2419,138.09,138.06,1.44837192]
[1728552701099,4.20814902,138.08,138.06,1.44837192]
[1728552701301,7.2419,138.09,138.06,1.44837192]
[1728552701637,4.20976896,138.08,138.06,1.44837192]
[1728552701808,7.2419,138.09,138.06,1.44837192]
[1728552702104,4.20982447,138.08,138.06,1.44837192]
[1728552702284,7.2419,138.09,138.06,1.44837192]
[1728552702489,4.21154873,138.08,138.06,1.44837192]
[1728552702696,7.2419,138.09,138.06,1.44837192]
[1728552703013,7.2419,138.09,138.05,31.020484]
[1728552703303,11.45379572,138.08,138.05,23.776884]
[1728552703492,4.21149572,138.07,138.05,23.776884]
[1728552705206,7.2423,138.08,138.06,1.44839805]
[1728552706087,7.2414,138.1,138.07,23.776884]
[1728552706913,4.21628317,138.09,138.07,31.019484]
[1728552707213,27.2408,138.11,138.07,31.019484]
[1728552707414,4.21651789,138.1,138.07,31.019484]
[1728552707594,27.2408,138.11,138.07,31.019484]
[1728552707914,4.21699362,138.1,138.07,31.019484]
[1728552708093,27.2408,138.11,138.07,31.019484]
[1728552708292,4.21752862,138.1,138.07,31.019484]
[1728552708499,27.2408,138.11,138.07,31.019484]
[1728552708816,4.21764763,138.1,138.07,31.019484]
[1728552709011,27.2408,138.11,138.07,31.019484]
[1728552709212,4.21749887,138.1,138.07,31.019484]
[1728552709412,20.0,138.11,138.07,23.776884]
[1728552709595,4.2182073,138.1,138.09,23.776884]
[1728552709795,7.2402,138.12,138.09,23.776884]
[1728552709999,4.21822759,138.11,138.09,23.776884]
[1728552710195,0.96892,138.16,138.11,23.776884]
[1728552710392,30.15638221,138.18,138.1,1.44799773]
[1728552710393,4.21870075,138.15,138.12,1.44776006]
[1728552710697,4.21870075,138.14,138.12,1.44776006]
[1728552711005,4.21870075,138.14,138.12,8.68776006]
[1728552711202,4.21870075,138.13,138.12,32.46464406]
[1728552711403,4.21870075,138.15,138.12,32.46464406]
[1728552711620,4.21870075,138.15,138.13,23.776884]
[1728552711914,7.238,138.16,138.14,1.44757309]
[1728552712401,4.2205355,138.15,138.14,1.44757309]
[1728552712801,8.44123231,138.15,138.14,1.44757309]
[1728552713013,4.22069681,138.15,138.14,1.44757309]
[1728552715119,4.22069681,138.15,138.13,23.776884]
[1728552715430,4.22069681,138.14,138.13,23.776884]
[1728552715808,7.238,138.16,138.13,23.776884]
[1728552716028,4.22235568,138.14,138.13,23.776884]
[1728552718128,4.22235568,138.14,138.11,7.2404]
[1728552718333,7.2388,138.15,138.12,0.12549]
[1728552718629,0.8182191,138.17,138.12,0.12549]
[1728552718630,4.22406333,138.14,138.12,7.36549]
[1728552718815,7.2381,138.16,138.12,7.36549]
[1728552719016,0.8182191,138.17,138.11,0.12549]
[1728552719206,8.0558191,138.17,138.13,25.3376]
[1728552719406,4.22435301,138.15,138.14,23.776884]
[1728552720127,4.22435301,138.15,138.13,23.776884]
[1728552720302,4.22435301,138.14,138.13,23.776884]
[1728552720631,4.22435301,138.15,138.13,23.776884]
[1728552720841,4.22435301,138.14,138.13,23.776884]
[1728552721129,4.22435301,138.15,138.13,23.776884]
[1728552721333,7.2381,138.16,138.13,23.776884]
[1728552721508,7.2386,138.15,138.13,23.776884]
[1728552721706,4.23083574,138.14,138.12,23.776884]
[1728552721902,7.2381,138.16,138.12,31.016784]
[1728552722122,4.22986861,138.15,138.13,8.68691374]
[1728552722331,4.22986861,138.14,138.13,31.016284]
[1728552722628,8.0558191,138.17,138.14,23.776884]
[1728552722840,4.23178031,138.16,138.14,23.776884]
[1728552723132,4.23178031,138.15,138.14,25.22437394]
[1728552723447,4.23178031,138.15,138.14,23.776884]
[1728552725616,4.23178031,138.15,138.14,31.141374]
[1728552727903,0.8182191,138.17,138.14,46.386474]
[1728552728108,4.23003112,138.15,138.14,71.848164]
[1728552728312,4.23003112,138.16,138.14,71.848164]
[1728552728524,0.8182191,138.17,138.14,71.848164]
[1728552728712,4.22943612,138.16,138.14,71.848164]
[1728552728919,0.8182191,138.17,138.14,71.848164]
[1728552729120,4.22943171,138.16,138.14,71.848164]
[1728552729321,0.8182191,138.17,138.16,7.48888]
[1728552729634,0.8182191,138.17,138.16,31.265764]
[1728552729808,5.04726464,138.17,138.16,31.140274]
[1728552730015,0.8182191,138.17,138.16,31.140274]
[1728552730225,5.04726464,138.17,138.15,23.776884]
[1728552730422,4.22904554,138.16,138.15,31.265964]
[1728552731236,0.8182191,138.17,138.16,31.014784]
[1728552731540,0.8182191,138.17,138.16,31.265764]
[1728552732107,5.04592037,138.17,138.16,31.265764]
[1728552732629,0.8182191,138.17,138.16,31.265764]
[1728552732940,0.8182191,138.17,138.14,54.68296112]
[1728552732941,0.8182191,138.17,138.14,16.4339]
[1728552733111,11.46530287,138.16,138.12,27.2397]
[1728552733319,7.2382,138.16,138.12,27.2397]
[1728552734238,7.2382,138.16,138.13,23.776884]
[1728552735837,0.8182191,138.17,138.13,23.776884]
[1728552736139,4.2264469,138.16,138.13,32.46368929]
[1728552736334,8.0558191,138.17,138.13,31.016284]
[1728552736519,4.22607176,138.16,138.13,31.016284]
[1728552736728,8.0558191,138.17,138.13,31.016284]
[1728552736924,4.22607369,138.16,138.14,0.25098]
[1728552737113,0.8182191,138.17,138.15,23.776884]
[1728552737440,0.8182191,138.17,138.16,25.22417051]
[1728552737824,5.04377715,138.17,138.16,25.22417051]
[1728552738217,5.04377715,138.17,138.16,32.46207051]
[1728552738517,5.04377715,138.17,138.16,52.71305051]
[1728552738719,0.8182191,138.17,138.16,54.18827051]
[1728552738919,0.8182191,138.17,138.16,45.628574]
[1728552739158,0.8182191,138.17,138.16,45.503084]
[1728552739342,0.8182191,138.17,138.16,54.18819094]
[1728552739557,0.8182191,138.17,138.16,52.740984]
[1728552740241,0.8182191,138.17,138.16,54.18816681]
[1728552741143,0.8182191,138.17,138.16,54.18816929]